[Event "Titled Tuesday Blitz January 18 2022"]
[White "Djordjevic, Vuk"]
[Black "Kalogridis, Antonios"]
[WhiteFideId "902098"]
[BlackFideId "25833901"]
[WhiteElo "2463"]
[BlackElo "1495"]
[Result "1-0"]
[Round "03"]
[TimeControl "180+1"]
[Date "2022.01.18"]
[WhiteClock "0:00:12"]
[BlackClock "0:00:06"]

1. d3 {[%clk 0:02:40]}  Nf6 {[%clk 0:02:59]} 2. Nf3 {[%clk 0:02:39]}  d5 {[%clk 0:02:59]} 3. g3 {[%clk 0:02:39]}  c5 {[%clk 0:03:00]} 4. Bg2 {[%clk 0:02:40]}  Nc6 {[%clk 0:03:01]} 5. O-O {[%clk 0:02:40]}  g6 {[%clk 0:03:01]} 6. Nbd2 {[%clk 0:02:38]}  Bg7 {[%clk 0:03:01]} 7. e4 {[%clk 0:02:35]}  O-O {[%clk 0:03:02]} 8. exd5 {[%clk 0:02:32]}  Nxd5 {[%clk 0:02:58]} 9. Re1 {[%clk 0:02:31]}  b6 {[%clk 0:02:51]} 10. Nc4 {[%clk 0:02:28]}  Bb7 {[%clk 0:02:51]} 11. c3 {[%clk 0:02:27]}  Re8 {[%clk 0:02:46]} 12. h4 {[%clk 0:02:27]}  h5 {[%clk 0:02:41]} 13. Qc2 {[%clk 0:02:05]}  Qc7 {[%clk 0:02:40]} 14. Bg5 {[%clk 0:01:59]}  e5 {[%clk 0:02:31]} 15. Nfd2 {[%clk 0:01:56]}  Rad8 {[%clk 0:02:21]} 16. Bxd8 {[%clk 0:01:51]}  Rxd8 {[%clk 0:02:20]} 17. Ne4 {[%clk 0:01:51]}  b5 {[%clk 0:02:16]} 18. Ne3 {[%clk 0:01:45]}  Nce7 {[%clk 0:02:10]} 19. a4 {[%clk 0:01:35]}  Nxe3 {[%clk 0:01:57]} 20. Rxe3 {[%clk 0:01:33]}  Nf5 {[%clk 0:01:51]} 21. Re2 {[%clk 0:01:31]}  b4 {[%clk 0:01:51]} 22. a5 {[%clk 0:01:21]}  Ba6 {[%clk 0:01:46]} 23. Rd2 {[%clk 0:01:17]}  Bf8 {[%clk 0:01:32]} 24. cxb4 {[%clk 0:01:14]}  Nd4 {[%clk 0:01:30]} 25. Qc3 {[%clk 0:01:15]}  Qb8 {[%clk 0:00:51]} 26. Nxc5 {[%clk 0:01:10]}  Bxc5 {[%clk 0:00:47]} 27. bxc5 {[%clk 0:01:11]}  Rc8 {[%clk 0:00:38]} 28. c6 {[%clk 0:00:51]}  Bb5 {[%clk 0:00:37]} 29. Qb4 {[%clk 0:00:50]}  a6 {[%clk 0:00:30]} 30. Rc1 {[%clk 0:00:48]}  Qa7 {[%clk 0:00:29]} 31. Qc5 {[%clk 0:00:46]}  Qc7 {[%clk 0:00:26]} 32. Qb6 {[%clk 0:00:46]}  Nb3 {[%clk 0:00:25]} 33. Qxc7 {[%clk 0:00:44]}  Rxc7 {[%clk 0:00:25]} 34. Rcc2 {[%clk 0:00:43]}  Nxd2 {[%clk 0:00:22]} 35. Rxd2 {[%clk 0:00:44]}  Kf8 {[%clk 0:00:14]} 36. Rc2 {[%clk 0:00:20]}  Ke7 {[%clk 0:00:13]} 37. Rc5 {[%clk 0:00:20]}  Kd6 {[%clk 0:00:12]} 38. d4 {[%clk 0:00:19]}  exd4 {[%clk 0:00:11]} 39. Rd5+ {[%clk 0:00:20]}  Ke6 {[%clk 0:00:11]} 40. Rxd4 {[%clk 0:00:19]}  Bxc6 {[%clk 0:00:10]} 41. Rc4 {[%clk 0:00:17]}  Kd6 {[%clk 0:00:10]} 42. Bf1 {[%clk 0:00:17]}  Bb7 {[%clk 0:00:05]} 43. Rb4 {[%clk 0:00:15]}  Bc8 {[%clk 0:00:04]} 44. f4 {[%clk 0:00:09]}  Rc2 {[%clk 0:00:03]} 45. Rb6+ {[%clk 0:00:08]}  Kc5 {[%clk 0:00:03]} 46. b4+ {[%clk 0:00:06]}  Kd4 {[%clk 0:00:03]} 47. Bxa6 {[%clk 0:00:05]}  Ke3 {[%clk 0:00:03]} 48. Bxc8 {[%clk 0:00:05]}  Kf3 {[%clk 0:00:03]} 49. Bh3 {[%clk 0:00:03]}  Rc1+ {[%clk 0:00:01]} 50. Bf1 {[%clk 0:00:03]}  Rc2 {[%clk 0:00:02]} 51. Rd6 {[%clk 0:00:03]}  Kg4 {[%clk 0:00:02]} 52. Rd3 {[%clk 0:00:04]}  Rc7 {[%clk 0:00:02]} 53. f5 {[%clk 0:00:05]}  gxf5 {[%clk 0:00:02]} 54. b5 {[%clk 0:00:05]}  f4 {[%clk 0:00:02]} 55. gxf4 {[%clk 0:00:06]}  Kxf4 {[%clk 0:00:03]} 56. b6 {[%clk 0:00:07]}  Rc6 {[%clk 0:00:03]} 57. Rd4+ {[%clk 0:00:07]}  Ke3 {[%clk 0:00:02]} 58. Rc4 {[%clk 0:00:08]}  Rg6+ {[%clk 0:00:02]} 59. Bg2 {[%clk 0:00:08]}  Rf6 {[%clk 0:00:03]} 60. Rc3+ {[%clk 0:00:08]}  Kd2 {[%clk 0:00:03]} 61. Rf3 {[%clk 0:00:09]}  Re6 {[%clk 0:00:03]} 62. b7 {[%clk 0:00:09]}  Re1+ {[%clk 0:00:03]} 63. Rf1 {[%clk 0:00:10]}  Re8 {[%clk 0:00:04]} 64. Rb1 {[%clk 0:00:10]}  Rb8 {[%clk 0:00:05]} 65. a6 {[%clk 0:00:10]}  Re8 {[%clk 0:00:05]} 66. a7 {[%clk 0:00:10]}  Re1+ {[%clk 0:00:05]} 67. Rxe1 {[%clk 0:00:10]}  Kxe1 {[%clk 0:00:06]} 68. b8=Q {[%clk 0:00:10]}  f5 {[%clk 0:00:07]} 69. Qe5+ {[%clk 0:00:10]}  Kd2 {[%clk 0:00:07]} 70. a8=Q {[%clk 0:00:11]}  f4 {[%clk 0:00:07]} 71. Qad5+ {[%clk 0:00:12]}  Kc1 {[%clk 0:00:07]} 72. Qe1+ {[%clk 0:00:12]}  Kb2 {[%clk 0:00:07]} 73. Qb5+ {[%clk 0:00:12]}  Kc2 {[%clk 0:00:06]} 74. Qeb1+ {[%clk 0:00:12]}  Kd2 {[%clk 0:00:06]} 75. Q5d3# {[%clk 0:00:12]} 1-0


[Site "https://www.chess.com"]

[Event "Titled Tuesday Blitz January 18 2022"]
[White "Erdogdu, Mert"]
[Black "Bluebaum, Matthias"]
[WhiteFideId "6301495"]
[BlackFideId "24651516"]
[WhiteElo "2485"]
[BlackElo "2550"]
[Result "0-1"]
[Round "03"]
[TimeControl "180+1"]
[Date "2022.01.18"]
[WhiteClock "0:00:05"]
[BlackClock "0:00:10"]

1. e4 {[%clk 0:03:00]}  e6 {[%clk 0:02:58]} 2. d4 {[%clk 0:03:00]}  d5 {[%clk 0:02:59]} 3. exd5 {[%clk 0:02:58]}  exd5 {[%clk 0:02:59]} 4. c4 {[%clk 0:02:59]}  Bb4+ {[%clk 0:02:59]} 5. Nc3 {[%clk 0:02:59]}  Ne7 {[%clk 0:03:00]} 6. Bd3 {[%clk 0:02:59]}  Nbc6 {[%clk 0:02:59]} 7. Ne2 {[%clk 0:02:58]}  O-O {[%clk 0:03:00]} 8. O-O {[%clk 0:02:58]}  dxc4 {[%clk 0:03:00]} 9. Bxc4 {[%clk 0:02:58]}  Bg4 {[%clk 0:03:01]} 10. a3 {[%clk 0:02:57]}  Ba5 {[%clk 0:02:58]} 11. h3 {[%clk 0:02:44]}  Bh5 {[%clk 0:02:59]} 12. Bg5 {[%clk 0:02:35]}  Kh8 {[%clk 0:02:41]} 13. Qa4 {[%clk 0:01:47]}  Bb6 {[%clk 0:02:35]} 14. Rad1 {[%clk 0:01:45]}  f6 {[%clk 0:02:34]} 15. Bf4 {[%clk 0:01:38]}  a6 {[%clk 0:02:12]} 16. d5 {[%clk 0:01:32]}  Ne5 {[%clk 0:02:12]} 17. Ba2 {[%clk 0:01:30]}  Nc8 {[%clk 0:01:52]} 18. Rd2 {[%clk 0:01:19]}  Nd6 {[%clk 0:01:51]} 19. Bh2 {[%clk 0:01:10]}  Qe8 {[%clk 0:01:49]} 20. Qc2 {[%clk 0:01:00]}  Bg6 {[%clk 0:01:32]} 21. Qc1 {[%clk 0:00:46]}  Ndc4 {[%clk 0:01:25]} 22. Rdd1 {[%clk 0:00:43]}  Nd3 {[%clk 0:01:21]} 23. Rxd3 {[%clk 0:00:31]}  Bxd3 {[%clk 0:01:22]} 24. Re1 {[%clk 0:00:31]}  Bxe2 {[%clk 0:01:00]} 25. Rxe2 {[%clk 0:00:30]}  Ne5 {[%clk 0:01:01]} 26. Kh1 {[%clk 0:00:28]}  Qd7 {[%clk 0:00:56]} 27. f4 {[%clk 0:00:23]}  Nf7 {[%clk 0:00:51]} 28. Re6 {[%clk 0:00:23]}  f5 {[%clk 0:00:46]} 29. Qc2 {[%clk 0:00:19]}  Nd6 {[%clk 0:00:45]} 30. Bg3 {[%clk 0:00:17]}  Rae8 {[%clk 0:00:45]} 31. Ne2 {[%clk 0:00:17]}  Ne4 {[%clk 0:00:43]} 32. Be1 {[%clk 0:00:16]}  Nc5 {[%clk 0:00:42]} 33. Re5 {[%clk 0:00:15]}  Qb5 {[%clk 0:00:35]} 34. Ng1 {[%clk 0:00:14]}  Qf1 {[%clk 0:00:33]} 35. Qf2 {[%clk 0:00:13]}  Qxf2 {[%clk 0:00:29]} 36. Bxf2 {[%clk 0:00:14]}  Nd3 {[%clk 0:00:28]} 37. Bxb6 {[%clk 0:00:14]}  Nxe5 {[%clk 0:00:23]} 38. fxe5 {[%clk 0:00:14]}  cxb6 {[%clk 0:00:23]} 39. Nf3 {[%clk 0:00:14]}  Rd8 {[%clk 0:00:16]} 40. e6 {[%clk 0:00:12]}  Rfe8 {[%clk 0:00:15]} 41. Ne5 {[%clk 0:00:12]}  Kg8 {[%clk 0:00:10]} 42. Nf7 {[%clk 0:00:10]}  Kf8 {[%clk 0:00:07]} 43. d6 {[%clk 0:00:11]}  Rxd6 {[%clk 0:00:04]} 44. Nxd6 {[%clk 0:00:11]}  Rd8 {[%clk 0:00:05]} 45. Nxf5 {[%clk 0:00:10]}  Rd1+ {[%clk 0:00:05]} 46. Kh2 {[%clk 0:00:10]}  g6 {[%clk 0:00:06]} 47. Ng3 {[%clk 0:00:07]}  Ke7 {[%clk 0:00:06]} 48. a4 {[%clk 0:00:05]}  Rd2 {[%clk 0:00:06]} 49. Bc4 {[%clk 0:00:05]}  Rxb2 {[%clk 0:00:07]} 50. Bd5 {[%clk 0:00:04]}  b5 {[%clk 0:00:06]} 51. a5 {[%clk 0:00:03]}  b4 {[%clk 0:00:05]} 52. Ne4 {[%clk 0:00:03]}  b3 {[%clk 0:00:04]} 53. Nc5 {[%clk 0:00:02]}  Ra2 {[%clk 0:00:04]} 54. Nxb3 {[%clk 0:00:01]}  Ra3 {[%clk 0:00:04]} 55. Kg3 {[%clk 0:00:01]}  Kd6 {[%clk 0:00:05]} 56. Kg4 {[%clk 0:00:02]}  Kxd5 {[%clk 0:00:03]} 57. e7 {[%clk 0:00:02]}  Ra4+ {[%clk 0:00:04]} 58. Kf3 {[%clk 0:00:01]}  Re4 {[%clk 0:00:05]} 59. Nc5 {[%clk 0:00:01]}  Rxe7 {[%clk 0:00:05]} 60. Nd3 {[%clk 0:00:01]}  Kd4 {[%clk 0:00:06]} 61. Nf4 {[%clk 0:00:02]}  Re3+ {[%clk 0:00:06]} 62. Kg4 {[%clk 0:00:02]}  Ra3 {[%clk 0:00:07]} 63. Kg5 {[%clk 0:00:03]}  Rxa5+ {[%clk 0:00:07]} 64. Kh6 {[%clk 0:00:04]}  Rf5 {[%clk 0:00:07]} 65. Ne6+ {[%clk 0:00:04]}  Ke5 {[%clk 0:00:08]} 66. Nc7 {[%clk 0:00:04]}  Rh5+ {[%clk 0:00:08]} 67. Kg7 {[%clk 0:00:04]}  a5 {[%clk 0:00:09]} 68. Nb5 {[%clk 0:00:04]}  a4 {[%clk 0:00:09]} 69. Nc3 {[%clk 0:00:05]}  a3 {[%clk 0:00:09]} 70. g4 {[%clk 0:00:05]}  Rxh3 {[%clk 0:00:09]} 71. Nb5 {[%clk 0:00:05]}  a2 {[%clk 0:00:10]} 0-1


[Site "https://www.chess.com"]

[Event "Titled Tuesday Blitz January 18 2022"]
[White "FGHSMN"]
[Black "Nilsen, Tobias Lang"]
[BlackFideId "1521624"]
[WhiteElo "2743"]
[BlackElo "2013"]
[Result "1-0"]
[Round "03"]
[TimeControl "180+1"]
[Date "2022.01.18"]
[WhiteClock "0:00:14"]
[BlackClock "0:00:02"]

1. b3 {[%clk 0:03:00]}  e5 {[%clk 0:02:57]} 2. Bb2 {[%clk 0:03:01]}  Nc6 {[%clk 0:02:58]} 3. c4 {[%clk 0:03:01]}  Nf6 {[%clk 0:02:57]} 4. e3 {[%clk 0:03:01]}  d5 {[%clk 0:02:58]} 5. cxd5 {[%clk 0:03:02]}  Nxd5 {[%clk 0:02:59]} 6. a3 {[%clk 0:03:02]}  Be6 {[%clk 0:02:56]} 7. Qc2 {[%clk 0:03:01]}  Bd6 {[%clk 0:02:53]} 8. Nf3 {[%clk 0:02:59]}  O-O {[%clk 0:02:41]} 9. d3 {[%clk 0:02:59]}  f5 {[%clk 0:02:36]} 10. Nbd2 {[%clk 0:02:58]}  Qf6 {[%clk 0:02:35]} 11. Be2 {[%clk 0:02:56]}  Rae8 {[%clk 0:02:30]} 12. Nc4 {[%clk 0:02:53]}  g5 {[%clk 0:02:25]} 13. d4 {[%clk 0:02:50]}  e4 {[%clk 0:02:19]} 14. Nfe5 {[%clk 0:02:49]}  Nce7 {[%clk 0:02:13]} 15. O-O-O {[%clk 0:02:34]}  b5 {[%clk 0:01:56]} 16. Nd2 {[%clk 0:02:27]}  b4 {[%clk 0:01:43]} 17. a4 {[%clk 0:02:19]}  Nc3 {[%clk 0:01:42]} 18. Bxc3 {[%clk 0:02:13]}  bxc3 {[%clk 0:01:41]} 19. Qxc3 {[%clk 0:02:08]}  Nd5 {[%clk 0:01:38]} 20. Qb2 {[%clk 0:02:08]}  Rb8 {[%clk 0:01:26]} 21. Ndc4 {[%clk 0:02:06]}  Nb6 {[%clk 0:01:19]} 22. Qc2 {[%clk 0:01:55]}  Nxc4 {[%clk 0:01:12]} 23. Bxc4 {[%clk 0:01:45]}  Bxe5 {[%clk 0:01:08]} 24. dxe5 {[%clk 0:01:45]}  Qxe5 {[%clk 0:01:07]} 25. Rd4 {[%clk 0:01:44]}  c5 {[%clk 0:01:04]} 26. Bxe6+ {[%clk 0:01:43]}  Qxe6 {[%clk 0:01:04]} 27. Rc4 {[%clk 0:01:42]}  Rb4 {[%clk 0:01:00]} 28. Rd1 {[%clk 0:01:20]}  Rfb8 {[%clk 0:01:00]} 29. Rxb4 {[%clk 0:01:19]}  cxb4 {[%clk 0:00:58]} 30. Qc7 {[%clk 0:00:54]}  Rc8 {[%clk 0:00:21]} 31. Rd8+ {[%clk 0:00:53]}  Rxd8 {[%clk 0:00:22]} 32. Qxd8+ {[%clk 0:00:54]}  Kf7 {[%clk 0:00:23]} 33. Qxg5 {[%clk 0:00:46]}  Qc6+ {[%clk 0:00:22]} 34. Kb1 {[%clk 0:00:45]}  Qd5 {[%clk 0:00:21]} 35. Qh5+ {[%clk 0:00:40]}  Kg7 {[%clk 0:00:22]} 36. Kc1 {[%clk 0:00:24]}  Qc5+ {[%clk 0:00:18]} 37. Kd1 {[%clk 0:00:24]}  Qd5+ {[%clk 0:00:19]} 38. Ke1 {[%clk 0:00:24]}  Qc5 {[%clk 0:00:15]} 39. Qd1 {[%clk 0:00:20]}  Qc3+ {[%clk 0:00:15]} 40. Kf1 {[%clk 0:00:20]}  a5 {[%clk 0:00:14]} 41. g3 {[%clk 0:00:20]}  Kg6 {[%clk 0:00:13]} 42. h4 {[%clk 0:00:20]}  h5 {[%clk 0:00:13]} 43. Kg2 {[%clk 0:00:20]}  Kf6 {[%clk 0:00:12]} 44. Qd6+ {[%clk 0:00:20]}  Kf7 {[%clk 0:00:12]} 45. Qd5+ {[%clk 0:00:21]}  Kf6 {[%clk 0:00:12]} 46. Qd8+ {[%clk 0:00:21]}  Kf7 {[%clk 0:00:12]} 47. Qg5 {[%clk 0:00:18]}  Qxb3 {[%clk 0:00:12]} 48. Qxf5+ {[%clk 0:00:19]}  Kg7 {[%clk 0:00:11]} 49. Qg5+ {[%clk 0:00:19]}  Kf7 {[%clk 0:00:10]} 50. Qxh5+ {[%clk 0:00:19]}  Ke6 {[%clk 0:00:10]} 51. Qxa5 {[%clk 0:00:18]}  Qc4 {[%clk 0:00:08]} 52. Qb6+ {[%clk 0:00:17]}  Kd5 {[%clk 0:00:08]} 53. a5 {[%clk 0:00:17]}  b3 {[%clk 0:00:08]} 54. a6 {[%clk 0:00:17]}  b2 {[%clk 0:00:03]} 55. a7 {[%clk 0:00:15]}  Qc6 {[%clk 0:00:01]} 56. Qxc6+ {[%clk 0:00:15]}  Ke5 {[%clk 0:00:02]} 57. a8=Q {[%clk 0:00:14]}  Kf5 {[%clk 0:00:02]} 58. Qf8+ {[%clk 0:00:14]}  Ke5 {[%clk 0:00:02]} 59. Qff6# {[%clk 0:00:14]} 1-0


[Site "https://www.chess.com"]

[Event "Titled Tuesday Blitz January 18 2022"]
[White "Fawzy, Adham"]
[Black "Nozdrachev, Leonid"]
[WhiteFideId "10613129"]
[BlackFideId "24113433"]
[WhiteElo "2510"]
[BlackElo "2124"]
[Result "1-0"]
[Round "03"]
[TimeControl "180+1"]
[Date "2022.01.18"]
[WhiteClock "0:01:13"]
[BlackClock "0:00:03"]

1. e4 {[%clk 0:03:00]}  d6 {[%clk 0:02:54]} 2. c4 {[%clk 0:03:01]}  c5 {[%clk 0:02:52]} 3. Nc3 {[%clk 0:03:01]}  g6 {[%clk 0:02:51]} 4. g3 {[%clk 0:03:01]}  Bg7 {[%clk 0:02:50]} 5. Bg2 {[%clk 0:03:02]}  Nc6 {[%clk 0:02:43]} 6. Nge2 {[%clk 0:03:02]}  h5 {[%clk 0:02:34]} 7. h3 {[%clk 0:03:02]}  Nf6 {[%clk 0:02:17]} 8. d3 {[%clk 0:03:02]}  Nd7 {[%clk 0:02:16]} 9. Be3 {[%clk 0:02:58]}  Nd4 {[%clk 0:02:03]} 10. O-O {[%clk 0:02:59]}  Nf8 {[%clk 0:01:59]} 11. f4 {[%clk 0:02:56]}  Nxe2+ {[%clk 0:01:58]} 12. Nxe2 {[%clk 0:02:55]}  Bxb2 {[%clk 0:01:56]} 13. Rb1 {[%clk 0:02:55]}  Bg7 {[%clk 0:01:55]} 14. d4 {[%clk 0:02:55]}  Ne6 {[%clk 0:01:50]} 15. d5 {[%clk 0:02:43]}  Nd4 {[%clk 0:01:07]} 16. Nxd4 {[%clk 0:02:43]}  cxd4 {[%clk 0:01:08]} 17. Bxd4 {[%clk 0:02:44]}  Bxd4+ {[%clk 0:00:47]} 18. Qxd4 {[%clk 0:02:45]}  Rg8 {[%clk 0:00:48]} 19. e5 {[%clk 0:02:43]}  b6 {[%clk 0:00:39]} 20. e6 {[%clk 0:02:20]}  fxe6 {[%clk 0:00:33]} 21. Rbe1 {[%clk 0:02:20]}  Qc7 {[%clk 0:00:27]} 22. Kh2 {[%clk 0:01:58]}  h4 {[%clk 0:00:25]} 23. g4 {[%clk 0:01:58]}  Qc5 {[%clk 0:00:24]} 24. Qd3 {[%clk 0:01:56]}  Bd7 {[%clk 0:00:17]} 25. Be4 {[%clk 0:01:44]}  O-O-O {[%clk 0:00:16]} 26. Bxg6 {[%clk 0:01:40]}  exd5 {[%clk 0:00:15]} 27. cxd5 {[%clk 0:01:40]}  Bb5 {[%clk 0:00:14]} 28. Qb3 {[%clk 0:01:32]}  Bxf1 {[%clk 0:00:13]} 29. Bf5+ {[%clk 0:01:25]}  Kb8 {[%clk 0:00:12]} 30. Rxf1 {[%clk 0:01:25]}  Rdf8 {[%clk 0:00:09]} 31. Be6 {[%clk 0:01:19]}  Rg7 {[%clk 0:00:09]} 32. f5 {[%clk 0:01:19]}  Qd4 {[%clk 0:00:07]} 33. Qf3 {[%clk 0:01:14]}  Qe5+ {[%clk 0:00:06]} 34. Qf4 {[%clk 0:01:15]}  Qb2+ {[%clk 0:00:06]} 35. Qf2 {[%clk 0:01:14]}  Qe5+ {[%clk 0:00:05]} 36. Qf4 {[%clk 0:01:15]}  Qb2+ {[%clk 0:00:05]} 37. Rf2 {[%clk 0:01:15]}  Qc3 {[%clk 0:00:04]} 38. g5 {[%clk 0:01:13]}  Rfg8 {[%clk 0:00:03]} 39. Rg2 {[%clk 0:01:13]} 1-0


[Site "https://www.chess.com"]

[Event "Titled Tuesday Blitz January 18 2022"]
[White "Gabdushev, Ruslan"]
[Black "Donchenko, Alexander"]
[WhiteFideId "4137833"]
[BlackFideId "24603295"]
[WhiteElo "2312"]
[BlackElo "2539"]
[Result "0-1"]
[Round "03"]
[TimeControl "180+1"]
[Date "2022.01.18"]
[WhiteClock "0:00:09"]
[BlackClock "0:00:37"]

1. b3 {[%clk 0:02:59]}  Nf6 {[%clk 0:02:59]} 2. Bb2 {[%clk 0:02:59]}  g6 {[%clk 0:02:59]} 3. Bxf6 {[%clk 0:02:59]}  exf6 {[%clk 0:03:00]} 4. e3 {[%clk 0:02:59]}  Bg7 {[%clk 0:03:00]} 5. g3 {[%clk 0:02:59]}  O-O {[%clk 0:02:59]} 6. Bg2 {[%clk 0:02:59]}  d5 {[%clk 0:02:59]} 7. d4 {[%clk 0:02:58]}  c6 {[%clk 0:02:57]} 8. Nd2 {[%clk 0:02:54]}  a5 {[%clk 0:02:57]} 9. a4 {[%clk 0:02:52]}  Na6 {[%clk 0:02:57]} 10. Ne2 {[%clk 0:02:48]}  Bg4 {[%clk 0:02:54]} 11. h3 {[%clk 0:02:48]}  Bf5 {[%clk 0:02:55]} 12. g4 {[%clk 0:02:36]}  Bd7 {[%clk 0:02:53]} 13. c4 {[%clk 0:02:34]}  Nb4 {[%clk 0:02:50]} 14. Kf1 {[%clk 0:02:32]}  dxc4 {[%clk 0:02:46]} 15. bxc4 {[%clk 0:02:31]}  f5 {[%clk 0:02:46]} 16. Nf4 {[%clk 0:02:05]}  fxg4 {[%clk 0:02:36]} 17. hxg4 {[%clk 0:02:04]}  Qg5 {[%clk 0:02:37]} 18. Bf3 {[%clk 0:01:54]}  c5 {[%clk 0:02:27]} 19. Ne4 {[%clk 0:01:53]}  Qe7 {[%clk 0:02:19]} 20. Nxc5 {[%clk 0:01:52]}  Bc6 {[%clk 0:02:20]} 21. Bxc6 {[%clk 0:01:48]}  bxc6 {[%clk 0:02:20]} 22. Qf3 {[%clk 0:01:40]}  Rad8 {[%clk 0:02:11]} 23. Kg2 {[%clk 0:01:35]}  Rfe8 {[%clk 0:02:04]} 24. Rad1 {[%clk 0:01:27]}  Qg5 {[%clk 0:01:59]} 25. Nh3 {[%clk 0:01:22]}  Qe7 {[%clk 0:01:56]} 26. g5 {[%clk 0:01:19]}  Rf8 {[%clk 0:01:48]} 27. Qg3 {[%clk 0:01:17]}  f6 {[%clk 0:01:36]} 28. Nf4 {[%clk 0:01:15]}  Rd6 {[%clk 0:01:21]} 29. Qh3 {[%clk 0:01:14]}  fxg5 {[%clk 0:01:16]} 30. Qxh7+ {[%clk 0:01:13]}  Kf7 {[%clk 0:01:17]} 31. Nh5 {[%clk 0:00:46]}  gxh5 {[%clk 0:01:16]} 32. Rxh5 {[%clk 0:00:43]}  Rg6 {[%clk 0:01:05]} 33. Rdh1 {[%clk 0:00:33]}  Rh8 {[%clk 0:01:01]} 34. Qxh8 {[%clk 0:00:32]}  Bxh8 {[%clk 0:01:02]} 35. Rxh8 {[%clk 0:00:32]}  Nd3 {[%clk 0:00:59]} 36. Nxd3 {[%clk 0:00:13]}  Qe4+ {[%clk 0:00:59]} 37. Kg3 {[%clk 0:00:13]}  Qxd3 {[%clk 0:00:59]} 38. R1h7+ {[%clk 0:00:12]}  Rg7 {[%clk 0:00:58]} 39. Rh6 {[%clk 0:00:12]}  Qxc4 {[%clk 0:00:57]} 40. Rc8 {[%clk 0:00:11]}  Rg6 {[%clk 0:00:41]} 41. Rc7+ {[%clk 0:00:11]}  Kf6 {[%clk 0:00:40]} 42. Rhh7 {[%clk 0:00:11]}  Kf5 {[%clk 0:00:39]} 43. Rhf7+ {[%clk 0:00:11]}  Ke4 {[%clk 0:00:39]} 44. Rfe7+ {[%clk 0:00:11]}  Kd3 {[%clk 0:00:39]} 45. Re5 {[%clk 0:00:11]}  Qxa4 {[%clk 0:00:37]} 46. d5 {[%clk 0:00:10]}  Qh4+ {[%clk 0:00:37]} 47. Kg2 {[%clk 0:00:10]}  Qg4+ {[%clk 0:00:37]} 48. Kf1 {[%clk 0:00:09]}  Rh6 {[%clk 0:00:37]} 0-1


[Site "https://www.chess.com"]

[Event "Titled Tuesday Blitz January 18 2022"]
[White "Goltsev, Dmitry"]
[Black "Quirke, Jeffrey"]
[WhiteFideId "24176710"]
[BlackFideId "2013029"]
[WhiteElo "2273"]
[BlackElo "2150"]
[Result "1-0"]
[Round "03"]
[TimeControl "180+1"]
[Date "2022.01.18"]
[WhiteClock "0:01:27"]
[BlackClock "0:00:01"]

1. e4 {[%clk 0:02:58]}  c6 {[%clk 0:03:00]} 2. d4 {[%clk 0:02:58]}  d5 {[%clk 0:03:01]} 3. Nc3 {[%clk 0:02:59]}  dxe4 {[%clk 0:03:00]} 4. Nxe4 {[%clk 0:03:00]}  Bf5 {[%clk 0:03:01]} 5. Ng3 {[%clk 0:03:01]}  Bg6 {[%clk 0:03:01]} 6. Nf3 {[%clk 0:03:00]}  e6 {[%clk 0:03:01]} 7. h4 {[%clk 0:03:01]}  h6 {[%clk 0:03:00]} 8. h5 {[%clk 0:03:02]}  Bh7 {[%clk 0:03:00]} 9. Bd3 {[%clk 0:03:03]}  Bxd3 {[%clk 0:02:59]} 10. Qxd3 {[%clk 0:03:04]}  Nf6 {[%clk 0:02:59]} 11. Bd2 {[%clk 0:03:04]}  c5 {[%clk 0:02:57]} 12. O-O-O {[%clk 0:03:04]}  Nc6 {[%clk 0:02:54]} 13. Be3 {[%clk 0:03:01]}  Qa5 {[%clk 0:02:43]} 14. a3 {[%clk 0:02:58]}  Rd8 {[%clk 0:02:42]} 15. Qc4 {[%clk 0:02:55]}  b5 {[%clk 0:02:18]} 16. Qe2 {[%clk 0:02:54]}  c4 {[%clk 0:02:12]} 17. c3 {[%clk 0:02:53]}  Nd5 {[%clk 0:01:59]} 18. Ne4 {[%clk 0:02:46]}  Be7 {[%clk 0:01:46]} 19. g4 {[%clk 0:02:45]}  Qc7 {[%clk 0:01:32]} 20. Qc2 {[%clk 0:02:42]}  Na5 {[%clk 0:01:06]} 21. g5 {[%clk 0:02:38]}  hxg5 {[%clk 0:01:05]} 22. Nfxg5 {[%clk 0:02:35]}  Nb3+ {[%clk 0:01:04]} 23. Kb1 {[%clk 0:02:35]}  a5 {[%clk 0:00:58]} 24. Nf3 {[%clk 0:02:25]}  b4 {[%clk 0:00:43]} 25. cxb4 {[%clk 0:02:24]}  axb4 {[%clk 0:00:44]} 26. Ne5 {[%clk 0:02:24]}  bxa3 {[%clk 0:00:37]} 27. Qxc4 {[%clk 0:02:18]}  a2+ {[%clk 0:00:26]} 28. Kxa2 {[%clk 0:02:17]}  Ra8+ {[%clk 0:00:25]} 29. Kxb3 {[%clk 0:02:14]}  Qb7+ {[%clk 0:00:12]} 30. Kc2 {[%clk 0:02:10]}  Rc8 {[%clk 0:00:11]} 31. Nc5 {[%clk 0:02:04]}  Bxc5 {[%clk 0:00:10]} 32. dxc5 {[%clk 0:02:05]}  Nxe3+ {[%clk 0:00:06]} 33. fxe3 {[%clk 0:02:04]}  Qg2+ {[%clk 0:00:06]} 34. Kb1 {[%clk 0:02:02]}  O-O {[%clk 0:00:06]} 35. Rdg1 {[%clk 0:01:58]}  Qf2 {[%clk 0:00:04]} 36. h6 {[%clk 0:01:54]}  g6 {[%clk 0:00:04]} 37. h7+ {[%clk 0:01:47]}  Kh8 {[%clk 0:00:04]} 38. Qd4 {[%clk 0:01:42]}  Qf5+ {[%clk 0:00:03]} 39. e4 {[%clk 0:01:35]}  Qf6 {[%clk 0:00:02]} 40. Rf1 {[%clk 0:01:32]}  Qg7 {[%clk 0:00:01]} 41. Rxf7 {[%clk 0:01:28]}  Rxf7 {[%clk 0:00:01]} 42. Nxf7# {[%clk 0:01:27]} 1-0


[Site "https://www.chess.com"]